[Event "Early-Titled-Tuesday-Blitz-May-28-2024"]
[Site "Chess.com"]
[Date "2024.05.28"]
[Round "5"]
[White "Fraler15"]
[Black "chessburger_tv"]
[Result "1-0"]
[WhiteElo "2206"]
[BlackElo "2379"]
[TimeControl "180+1"]
[EndTime "8:57:10 PDT"]
[Termination "Fraler15 won by checkmate"]

1. d4 {[%clk 0:03:00.9]} 1... e6 {[%clk 0:03:00]} 2. c4 {[%clk 0:02:59.6]} 2...
d5 {[%clk 0:02:58.8]} 3. Nf3 {[%clk 0:02:57.7]} 3... Nf6 {[%clk 0:02:59.2]} 4.
Nc3 {[%clk 0:02:56.8]} 4... Be7 {[%clk 0:02:58.2]} 5. Bg5 {[%clk 0:02:54.7]}
5... O-O {[%clk 0:02:58]} 6. e3 {[%clk 0:02:52.8]} 6... h6 {[%clk 0:02:56.1]} 7.
Bh4 {[%clk 0:02:52.1]} 7... Ne4 {[%clk 0:02:56.5]} 8. Bxe7 {[%clk 0:02:51.2]}
8... Qxe7 {[%clk 0:02:57.4]} 9. Rc1 {[%clk 0:02:50.5]} 9... Nxc3 {[%clk
0:02:54.7]} 10. Rxc3 {[%clk 0:02:49.1]} 10... c6 {[%clk 0:02:52.9]} 11. Bd3
{[%clk 0:02:40.8]} 11... Nd7 {[%clk 0:02:53.2]} 12. O-O {[%clk 0:02:39.9]} 12...
dxc4 {[%clk 0:02:53.8]} 13. Bxc4 {[%clk 0:02:38.8]} 13... e5 {[%clk 0:02:53.9]}
14. Bb3 {[%clk 0:02:37.1]} 14... e4 {[%clk 0:02:43.5]} 15. Nd2 {[%clk 0:02:34]}
15... Nf6 {[%clk 0:02:43.4]} 16. f3 {[%clk 0:02:32]} 16... Bf5 {[%clk
0:02:29.1]} 17. Kh1 {[%clk 0:02:15.3]} 17... Rad8 {[%clk 0:01:56.2]} 18. f4
{[%clk 0:02:14.5]} 18... Be6 {[%clk 0:01:47.9]} 19. Rc5 {[%clk 0:02:05.8]} 19...
Bd5 {[%clk 0:01:13.2]} 20. Qe1 {[%clk 0:02:01.9]} 20... Rd6 {[%clk 0:01:04.8]}
21. Nc4 {[%clk 0:01:49.7]} 21... Bxc4 {[%clk 0:00:55.8]} 22. Bxc4 {[%clk
0:01:47.6]} 22... Nd7 {[%clk 0:00:36.9]} 23. Rh5 {[%clk 0:01:40.5]} 23... Kh7
{[%clk 0:00:28.1]} 24. f5 {[%clk 0:01:32.8]} 24... Nf6 {[%clk 0:00:22.3]} 25.
Rh3 {[%clk 0:01:31.8]} 25... b5 {[%clk 0:00:22.3]} 26. Bb3 {[%clk 0:01:31]}
26... a5 {[%clk 0:00:22.4]} 27. Qxa5 {[%clk 0:01:22]} 27... Ng4 {[%clk
0:00:19.8]} 28. Qe1 {[%clk 0:01:20.4]} 28... Nf6 {[%clk 0:00:09.1]} 29. Qh4
{[%clk 0:01:16.7]} 29... Rc8 {[%clk 0:00:08.7]} 30. g4 {[%clk 0:01:14.1]} 30...
Ng8 {[%clk 0:00:04.5]} 31. g5 {[%clk 0:01:12.8]} 31... c5 {[%clk 0:00:02.6]} 32.
Bxf7 {[%clk 0:01:07.7]} 32... c4 {[%clk 0:00:01.4]} 33. Be6 {[%clk 0:01:00.1]}
33... Rxe6 {[%clk 0:00:01.1]} 34. fxe6 {[%clk 0:00:59.6]} 34... Qxe6 {[%clk
0:00:02]} 35. gxh6 {[%clk 0:00:58.3]} 35... Nxh6 {[%clk 0:00:02.9]} 36. Rg3
{[%clk 0:00:47.8]} 36... b4 {[%clk 0:00:03.1]} 37. Qg5 {[%clk 0:00:46.4]} 37...
Rc7 {[%clk 0:00:03.6]} 38. Rfg1 {[%clk 0:00:45.5]} 38... c3 {[%clk 0:00:03.4]}
39. bxc3 {[%clk 0:00:44.7]} 39... bxc3 {[%clk 0:00:04.3]} 40. d5 {[%clk
0:00:44.8]} 40... Qf6 {[%clk 0:00:03.7]} 41. Qxf6 {[%clk 0:00:44.2]} 41... gxf6
{[%clk 0:00:04.6]} 42. d6 {[%clk 0:00:44.3]} 42... Rd7 {[%clk 0:00:04.7]} 43.
Rc1 {[%clk 0:00:43.2]} 43... Nf5 {[%clk 0:00:04.5]} 44. Rh3+ {[%clk 0:00:42.1]}
44... Kg6 {[%clk 0:00:05.2]} 45. Rxc3 {[%clk 0:00:42.2]} 45... Rxd6 {[%clk
0:00:05.8]} 46. Rc1 {[%clk 0:00:39.1]} 46... Rd2 {[%clk 0:00:05.9]} 47. Ra1
{[%clk 0:00:39]} 47... Nd6 {[%clk 0:00:02.4]} 48. a4 {[%clk 0:00:38.9]} 48...
Nb7 {[%clk 0:00:02.2]} 49. a5 {[%clk 0:00:39]} 49... Rd8 {[%clk 0:00:02.1]} 50.
a6 {[%clk 0:00:39.1]} 50... Ra8 {[%clk 0:00:02.7]} 51. Rg3+ {[%clk 0:00:34.7]}
51... Kf7 {[%clk 0:00:02.5]} 52. Rg4 {[%clk 0:00:34.6]} 52... Nd6 {[%clk
0:00:02.7]} 53. Rh4 {[%clk 0:00:33.1]} 53... Kg7 {[%clk 0:00:02.4]} 54. Rh5
{[%clk 0:00:29.7]} 54... Kf7 {[%clk 0:00:02.1]} 55. Rd5 {[%clk 0:00:29.5]} 55...
Ke6 {[%clk 0:00:02.5]} 56. Rc5 {[%clk 0:00:28.4]} 56... f5 {[%clk 0:00:02.2]}
57. Rc7 {[%clk 0:00:27]} 57... Nb5 {[%clk 0:00:02.1]} 58. Rc6+ {[%clk
0:00:25.8]} 58... Kd5 {[%clk 0:00:01.9]} 59. Rf6 {[%clk 0:00:25.4]} 59... Nd6
{[%clk 0:00:02.2]} 60. Rd1+ {[%clk 0:00:23.8]} 60... Ke5 {[%clk 0:00:01.2]} 61.
Rfxd6 {[%clk 0:00:23.8]} 61... f4 {[%clk 0:00:01.1]} 62. R1d5# {[%clk
0:00:23.7]} 1-0

[Event "Early-Titled-Tuesday-Blitz-May-28-2024"]
[Site "Chess.com"]
[Date "2024.05.28"]
[Round "5"]
[White "littlepinkyboy"]
[Black "ubdip"]
[Result "1-0"]
[WhiteElo "2630"]
[BlackElo "2442"]
[TimeControl "180+1"]
[EndTime "8:57:12 PDT"]
[Termination "littlepinkyboy won on time"]

1. e4 {[%clk 0:03:00.9]} 1... c5 {[%clk 0:03:00.2]} 2. Nf3 {[%clk 0:02:58.5]}
2... Nc6 {[%clk 0:03:00.7]} 3. d4 {[%clk 0:02:58.5]} 3... cxd4 {[%clk
0:03:01.6]} 4. Nxd4 {[%clk 0:02:58.6]} 4... Qb6 {[%clk 0:03:01.8]} 5. Nb3 {[%clk
0:02:58.1]} 5... Nf6 {[%clk 0:03:02.2]} 6. Nc3 {[%clk 0:02:58.7]} 6... e6 {[%clk
0:03:02.6]} 7. Be3 {[%clk 0:02:58.9]} 7... Qc7 {[%clk 0:03:02.5]} 8. f3 {[%clk
0:02:58.3]} 8... Bb4 {[%clk 0:03:01.5]} 9. Qd2 {[%clk 0:02:57.9]} 9... d5 {[%clk
0:03:00.5]} 10. a3 {[%clk 0:02:55.4]} 10... Bxc3 {[%clk 0:02:59.5]} 11. Qxc3
{[%clk 0:02:56.3]} 11... dxe4 {[%clk 0:02:54]} 12. fxe4 {[%clk 0:02:57.2]} 12...
O-O {[%clk 0:02:54.2]} 13. Bd3 {[%clk 0:02:56.7]} 13... Ng4 {[%clk 0:02:36.4]}
14. Bd2 {[%clk 0:02:55.4]} 14... b6 {[%clk 0:01:57.5]} 15. Be2 {[%clk
0:02:27.5]} 15... Nf6 {[%clk 0:01:31.7]} 16. Bf3 {[%clk 0:02:19]} 16... e5
{[%clk 0:01:31.7]} 17. O-O-O {[%clk 0:02:18.4]} 17... Be6 {[%clk 0:01:25]} 18.
Bg5 {[%clk 0:02:14.5]} 18... Rac8 {[%clk 0:01:15.8]} 19. Bxf6 {[%clk 0:02:12.1]}
19... gxf6 {[%clk 0:01:16.7]} 20. Kb1 {[%clk 0:02:12.1]} 20... Ne7 {[%clk
0:01:10.2]} 21. Qxc7 {[%clk 0:02:06.6]} 21... Rxc7 {[%clk 0:01:11.1]} 22. Nc1
{[%clk 0:02:07.3]} 22... Rfc8 {[%clk 0:01:09.9]} 23. c3 {[%clk 0:02:07.5]} 23...
f5 {[%clk 0:01:06.6]} 24. Rhe1 {[%clk 0:02:03.4]} 24... f6 {[%clk 0:01:06.8]}
25. Rd6 {[%clk 0:01:55.2]} 25... Rc6 {[%clk 0:01:01.8]} 26. Rxc6 {[%clk
0:01:49.7]} 26... Rxc6 {[%clk 0:00:58.9]} 27. Nd3 {[%clk 0:01:43.4]} 27... Rd6
{[%clk 0:00:55.1]} 28. Nc1 {[%clk 0:01:23.1]} 28... Ng6 {[%clk 0:00:47]} 29. Kc2
{[%clk 0:01:19]} 29... fxe4 {[%clk 0:00:42.8]} 30. Bxe4 {[%clk 0:01:14.3]} 30...
f5 {[%clk 0:00:42.9]} 31. Bd3 {[%clk 0:01:14.5]} 31... Kg7 {[%clk 0:00:33]} 32.
c4 {[%clk 0:01:05.2]} 32... e4 {[%clk 0:00:27.9]} 33. Bf1 {[%clk 0:01:04.5]}
33... Ne5 {[%clk 0:00:24.5]} 34. b3 {[%clk 0:01:01.9]} 34... Kf6 {[%clk
0:00:19]} 35. Na2 {[%clk 0:01:01.5]} 35... Ng4 {[%clk 0:00:16]} 36. h3 {[%clk
0:01:00.2]} 36... Ne5 {[%clk 0:00:14.6]} 37. Nc3 {[%clk 0:01:00]} 37... Nc6
{[%clk 0:00:14.5]} 38. b4 {[%clk 0:00:51.8]} 38... Nd4+ {[%clk 0:00:10]} 39. Kb2
{[%clk 0:00:51.7]} 39... Ke5 {[%clk 0:00:08.9]} 40. c5 {[%clk 0:00:35]} 40...
bxc5 {[%clk 0:00:09.7]} 41. bxc5 {[%clk 0:00:35.8]} 41... Rc6 {[%clk 0:00:09.8]}
42. Na4 {[%clk 0:00:36.4]} 42... Rc8 {[%clk 0:00:08.6]} 43. Kc3 {[%clk
0:00:30.4]} 43... f4 {[%clk 0:00:04.9]} 44. Bd3 {[%clk 0:00:24.3]} 44... e3
{[%clk 0:00:04.7]} 45. g3 {[%clk 0:00:24.1]} 45... Bd7 {[%clk 0:00:03.4]} 46.
gxf4+ {[%clk 0:00:23]} 46... Kxf4 {[%clk 0:00:04.3]} 47. Kxd4 {[%clk 0:00:21.4]}
47... Bxa4 {[%clk 0:00:04.3]} 48. Rf1+ {[%clk 0:00:22]} 48... Kg3 {[%clk
0:00:04.1]} 49. Kxe3 {[%clk 0:00:19.7]} 49... Rxc5 {[%clk 0:00:04.4]} 50. Rf3+
{[%clk 0:00:18.5]} 50... Kh4 {[%clk 0:00:03.7]} 51. Rf4+ {[%clk 0:00:18.3]}
51... Kxh3 {[%clk 0:00:03.5]} 52. Rxa4 {[%clk 0:00:19.2]} 52... a5 {[%clk
0:00:03.1]} 53. Bxh7 {[%clk 0:00:16.9]} 53... Kg3 {[%clk 0:00:02.8]} 54. Be4
{[%clk 0:00:17.2]} 54... Kg4 {[%clk 0:00:01]} 55. Kd4 {[%clk 0:00:16.8]} 1-0

[Event "Early-Titled-Tuesday-Blitz-May-28-2024"]
[Site "Chess.com"]
[Date "2024.05.28"]
[Round "5"]
[White "theoneandonlydaaevik"]
[Black "chessfatbear"]
[Result "0-1"]
[WhiteElo "2609"]
[BlackElo "2828"]
[TimeControl "180+1"]
[EndTime "8:57:13 PDT"]
[Termination "chessfatbear won by checkmate"]

1. c4 {[%clk 0:02:55.7]} 1... e5 {[%clk 0:02:57.4]} 2. Nc3 {[%clk 0:02:55.1]}
2... Nf6 {[%clk 0:02:57.2]} 3. Nf3 {[%clk 0:02:55.2]} 3... Nc6 {[%clk 0:02:56]}
4. g3 {[%clk 0:02:55.1]} 4... Bb4 {[%clk 0:02:54.8]} 5. Nd5 {[%clk 0:02:51.6]}
5... Bc5 {[%clk 0:02:55]} 6. Bg2 {[%clk 0:02:48.9]} 6... O-O {[%clk 0:02:51.2]}
7. b4 {[%clk 0:02:34]} 7... Nxb4 {[%clk 0:02:41]} 8. Nxb4 {[%clk 0:02:30.7]}
8... Bxb4 {[%clk 0:02:32]} 9. Nxe5 {[%clk 0:02:30.4]} 9... d5 {[%clk 0:02:26.7]}
10. cxd5 {[%clk 0:02:15.6]} 10... Re8 {[%clk 0:02:13.5]} 11. Bb2 {[%clk
0:02:11.3]} 11... Nxd5 {[%clk 0:02:11.6]} 12. O-O {[%clk 0:02:08.1]} 12... Bf8
{[%clk 0:02:11.4]} 13. Qb3 {[%clk 0:02:06.5]} 13... Be6 {[%clk 0:02:10.2]} 14.
Qc2 {[%clk 0:01:55.8]} 14... c5 {[%clk 0:02:05.9]} 15. a3 {[%clk 0:01:51.2]}
15... Rc8 {[%clk 0:02:01.9]} 16. Rfd1 {[%clk 0:01:49.2]} 16... b5 {[%clk
0:02:00.9]} 17. d3 {[%clk 0:01:40.6]} 17... a5 {[%clk 0:01:59.5]} 18. e4 {[%clk
0:01:39.8]} 18... Nb6 {[%clk 0:01:54.9]} 19. f4 {[%clk 0:01:35.5]} 19... a4
{[%clk 0:01:54.7]} 20. Qf2 {[%clk 0:01:34]} 20... f6 {[%clk 0:01:45.3]} 21. Nf3
{[%clk 0:01:23.3]} 21... Qe7 {[%clk 0:01:39.1]} 22. d4 {[%clk 0:01:13.2]} 22...
Bb3 {[%clk 0:01:37.6]} 23. Re1 {[%clk 0:01:01.7]} 23... Nc4 {[%clk 0:01:34.2]}
24. Bc3 {[%clk 0:00:59.2]} 24... b4 {[%clk 0:01:33.3]} 25. Bd2 {[%clk
0:00:49.9]} 25... Nxd2 {[%clk 0:01:30.2]} 26. Qxd2 {[%clk 0:00:49.4]} 26... c4
{[%clk 0:01:18.2]} 27. e5 {[%clk 0:00:39.8]} 27... c3 {[%clk 0:01:17.3]} 28. Qe3
{[%clk 0:00:39.1]} 28... c2 {[%clk 0:01:15.2]} 29. Nd2 {[%clk 0:00:33.4]} 29...
Rc3 {[%clk 0:01:11.6]} 30. Qf2 {[%clk 0:00:31.4]} 30... bxa3 {[%clk 0:00:56.5]}
31. Ne4 {[%clk 0:00:30.6]} 31... Rd3 {[%clk 0:00:42.8]} 32. Nc5 {[%clk
0:00:18.9]} 32... Rd1 {[%clk 0:00:32.5]} 33. Nxb3 {[%clk 0:00:18.2]} 33... axb3
{[%clk 0:00:24.2]} 34. Bd5+ {[%clk 0:00:18.1]} 34... Kh8 {[%clk 0:00:24.2]} 35.
Bxb3 {[%clk 0:00:18.7]} 35... Rxa1 {[%clk 0:00:20]} 36. Rxa1 {[%clk 0:00:18.3]}
36... Rc8 {[%clk 0:00:12.3]} 37. Bxc2 {[%clk 0:00:13.8]} 37... Qb4 {[%clk
0:00:09.3]} 38. Bf5 {[%clk 0:00:10.2]} 38... Rd8 {[%clk 0:00:06.6]} 39. exf6
{[%clk 0:00:08.5]} 39... gxf6 {[%clk 0:00:05.4]} 40. Qe3 {[%clk 0:00:02.6]}
40... Rxd4 {[%clk 0:00:03.6]} 41. Qe8 {[%clk 0:00:01.8]} 41... Rd2 {[%clk
0:00:01]} 42. Qf7 {[%clk 0:00:02.1]} 42... Qd4+ {[%clk 0:00:01.4]} 43. Kh1
{[%clk 0:00:02.4]} 43... Qxa1+ {[%clk 0:00:01.6]} 44. Bb1 {[%clk 0:00:01.4]}
44... Qxb1# {[%clk 0:00:02.2]} 0-1

[Event "Early-Titled-Tuesday-Blitz-May-28-2024"]
[Site "Chess.com"]
[Date "2024.05.28"]
[Round "5"]
[White "GlavkonVVS"]
[Black "BashiqChess"]
[Result "0-1"]
[WhiteElo "2570"]
[BlackElo "2423"]
[TimeControl "180+1"]
[EndTime "8:57:14 PDT"]
[Termination "BashiqChess won by resignation"]

1. c4 {[%clk 0:03:00.9]} 1... Nf6 {[%clk 0:02:58.9]} 2. Nc3 {[%clk 0:03:01.2]}
2... c6 {[%clk 0:02:48]} 3. Nf3 {[%clk 0:02:59.9]} 3... d5 {[%clk 0:02:48.4]} 4.
d4 {[%clk 0:03:00.4]} 4... e6 {[%clk 0:02:44.5]} 5. Bg5 {[%clk 0:03:00.1]} 5...
Nbd7 {[%clk 0:02:42.2]} 6. e3 {[%clk 0:03:00]} 6... Bb4 {[%clk 0:02:41]} 7. Nd2
{[%clk 0:02:56.9]} 7... Qa5 {[%clk 0:02:39.4]} 8. Qc2 {[%clk 0:02:56]} 8... h6
{[%clk 0:02:38.6]} 9. Bh4 {[%clk 0:02:55.4]} 9... O-O {[%clk 0:02:33.8]} 10. Be2
{[%clk 0:02:51]} 10... Ne4 {[%clk 0:02:21.4]} 11. Ndxe4 {[%clk 0:02:49.2]} 11...
dxe4 {[%clk 0:02:22.3]} 12. O-O {[%clk 0:02:48.8]} 12... Bxc3 {[%clk 0:01:54.4]}
13. bxc3 {[%clk 0:02:47.3]} 13... Qf5 {[%clk 0:01:54.8]} 14. a4 {[%clk
0:02:34.4]} 14... b6 {[%clk 0:01:53.7]} 15. a5 {[%clk 0:02:33.7]} 15... bxa5
{[%clk 0:01:51.9]} 16. Qa4 {[%clk 0:02:32.8]} 16... Nb6 {[%clk 0:01:27.4]} 17.
Qxa5 {[%clk 0:02:32.1]} 17... e5 {[%clk 0:01:12.4]} 18. Rfb1 {[%clk 0:02:17.5]}
18... Be6 {[%clk 0:01:06.1]} 19. g4 {[%clk 0:02:09.5]} 19... Qg6 {[%clk
0:01:00.8]} 20. Qxe5 {[%clk 0:02:06.9]} 20... Bxc4 {[%clk 0:00:40.3]} 21. Bxc4
{[%clk 0:01:45]} 21... Nxc4 {[%clk 0:00:40.5]} 22. Qf5 {[%clk 0:01:39]} 22...
Qxf5 {[%clk 0:00:40.2]} 23. gxf5 {[%clk 0:01:38.9]} 23... Nd2 {[%clk 0:00:40.7]}
24. Be7 {[%clk 0:01:34.9]} 24... Nxb1 {[%clk 0:00:24.2]} 25. Bxf8 {[%clk
0:01:34.4]} 25... Kxf8 {[%clk 0:00:18.9]} 26. Rxb1 {[%clk 0:01:33.8]} 26... a5
{[%clk 0:00:19.6]} 27. f3 {[%clk 0:01:31.3]} 27... exf3 {[%clk 0:00:16.9]} 28.
Kf2 {[%clk 0:01:31.3]} 28... Ke7 {[%clk 0:00:09]} 29. Kxf3 {[%clk 0:01:31.2]}
29... a4 {[%clk 0:00:09.3]} 30. Ra1 {[%clk 0:01:29.1]} 30... a3 {[%clk
0:00:09.8]} 31. Ra2 {[%clk 0:01:29]} 31... Kd6 {[%clk 0:00:10.4]} 32. e4 {[%clk
0:01:28.3]} 32... g6 {[%clk 0:00:09.2]} 33. Kf4 {[%clk 0:01:23.7]} 33... g5+
{[%clk 0:00:06.4]} 34. Ke3 {[%clk 0:01:22.8]} 34... f6 {[%clk 0:00:06.2]} 35. c4
{[%clk 0:01:15.1]} 35... Ra4 {[%clk 0:00:05.6]} 36. c5+ {[%clk 0:01:13.3]} 36...
Kd7 {[%clk 0:00:05.4]} 37. Kd3 {[%clk 0:01:13.4]} 37... Kc7 {[%clk 0:00:04]} 38.
Kc3 {[%clk 0:01:13.1]} 38... h5 {[%clk 0:00:03.5]} 39. h3 {[%clk 0:01:11.9]}
39... Kd7 {[%clk 0:00:03.3]} 40. e5 {[%clk 0:01:08.6]} 40... fxe5 {[%clk
0:00:02.3]} 41. dxe5 {[%clk 0:01:08.7]} 41... Rf4 {[%clk 0:00:01.7]} 42. f6
{[%clk 0:00:38.2]} 42... Rf3+ {[%clk 0:00:01.4]} 43. Kb4 {[%clk 0:00:37]} 43...
Ke6 {[%clk 0:00:01.7]} 44. Rd2 {[%clk 0:00:25.2]} 44... Kxe5 {[%clk 0:00:01.2]}
45. f7 {[%clk 0:00:24.3]} 45... Rxf7 {[%clk 0:00:01.4]} 46. Kxa3 {[%clk
0:00:24.6]} 46... Rf3+ {[%clk 0:00:01.8]} 47. Kb4 {[%clk 0:00:25]} 47... Rxh3
{[%clk 0:00:02.7]} 48. Rd6 {[%clk 0:00:25.1]} 48... g4 {[%clk 0:00:03.1]} 49.
Rxc6 {[%clk 0:00:25.3]} 49... g3 {[%clk 0:00:03.4]} 50. Rg6 {[%clk 0:00:25.2]}
50... Kf5 {[%clk 0:00:03.7]} 51. Rg8 {[%clk 0:00:24.9]} 51... h4 {[%clk
0:00:03.5]} 52. c6 {[%clk 0:00:25]} 52... Rh1 {[%clk 0:00:04.1]} 53. c7 {[%clk
0:00:24.7]} 53... Rb1+ {[%clk 0:00:04.4]} 54. Kc3 {[%clk 0:00:23.1]} 54... Rc1+
{[%clk 0:00:04.1]} 55. Kd4 {[%clk 0:00:23.7]} 55... Rxc7 {[%clk 0:00:05]} 56.
Rh8 {[%clk 0:00:22.6]} 56... Kg4 {[%clk 0:00:05]} 57. Ke3 {[%clk 0:00:22.5]}
57... Re7+ {[%clk 0:00:05]} 58. Kd2 {[%clk 0:00:22.2]} 58... Kh3 {[%clk
0:00:04.8]} 59. Kd3 {[%clk 0:00:21.7]} 59... g2 {[%clk 0:00:05.1]} 0-1

[Event "Early-Titled-Tuesday-Blitz-May-28-2024"]
[Site "Chess.com"]
[Date "2024.05.28"]
[Round "5"]
[White "ChessSwole"]
[Black "AryanTari"]
[Result "0-1"]
[WhiteElo "2707"]
[BlackElo "3051"]
[TimeControl "180+1"]
[EndTime "8:57:15 PDT"]
[Termination "AryanTari won by resignation"]

1. Nf3 {[%clk 0:02:59.2]} 1... Nf6 {[%clk 0:02:58.7]} 2. g3 {[%clk 0:02:57.5]}
2... c5 {[%clk 0:02:58.4]} 3. Bg2 {[%clk 0:02:57.5]} 3... Nc6 {[%clk 0:02:58.8]}
4. d4 {[%clk 0:02:53.5]} 4... cxd4 {[%clk 0:02:57.1]} 5. Nxd4 {[%clk 0:02:54.4]}
5... e5 {[%clk 0:02:57.1]} 6. Nxc6 {[%clk 0:02:53.9]} 6... dxc6 {[%clk
0:02:56.7]} 7. Qxd8+ {[%clk 0:02:54.8]} 7... Kxd8 {[%clk 0:02:57.2]} 8. O-O
{[%clk 0:02:52.7]} 8... Be6 {[%clk 0:02:57]} 9. Nd2 {[%clk 0:02:48.8]} 9... Nd7
{[%clk 0:02:56]} 10. Nb3 {[%clk 0:02:48.4]} 10... Kc7 {[%clk 0:02:47.9]} 11. Be3
{[%clk 0:02:47.2]} 11... a5 {[%clk 0:02:44.2]} 12. a4 {[%clk 0:02:36.5]} 12...
Be7 {[%clk 0:02:35.9]} 13. Rfd1 {[%clk 0:02:34.1]} 13... Rhd8 {[%clk 0:02:26.5]}
14. f4 {[%clk 0:01:52.8]} 14... f6 {[%clk 0:02:25.8]} 15. fxe5 {[%clk
0:01:45.2]} 15... fxe5 {[%clk 0:02:01.9]} 16. Nd2 {[%clk 0:01:43.9]} 16... Bc5
{[%clk 0:01:49.5]} 17. Bxc5 {[%clk 0:01:42.7]} 17... Nxc5 {[%clk 0:01:50.4]} 18.
Ne4 {[%clk 0:01:42.9]} 18... Rxd1+ {[%clk 0:01:46.6]} 19. Rxd1 {[%clk
0:01:42.6]} 19... Nxa4 {[%clk 0:01:47.5]} 20. b3 {[%clk 0:01:41.6]} 20... Nb6
{[%clk 0:01:43.8]} 21. Ng5 {[%clk 0:01:35.8]} 21... Bg8 {[%clk 0:01:31.3]} 22.
Be4 {[%clk 0:01:28.2]} 22... h6 {[%clk 0:01:19.1]} 23. Nf3 {[%clk 0:01:28.5]}
23... a4 {[%clk 0:01:19.6]} 24. bxa4 {[%clk 0:01:15.4]} 24... Rxa4 {[%clk
0:01:18.6]} 25. Bf5 {[%clk 0:01:11]} 25... Ra5 {[%clk 0:01:13.6]} 26. Kf2 {[%clk
0:00:59.5]} 26... Rc5 {[%clk 0:01:13.5]} 27. g4 {[%clk 0:00:52.7]} 27... Bf7
{[%clk 0:00:58.4]} 28. h4 {[%clk 0:00:51.8]} 28... Be8 {[%clk 0:00:52.1]} 29. g5
{[%clk 0:00:48.2]} 29... Bd7 {[%clk 0:00:51.7]} 30. Be4 {[%clk 0:00:46.4]} 30...
Be6 {[%clk 0:00:33.9]} 31. gxh6 {[%clk 0:00:43.1]} 31... gxh6 {[%clk 0:00:34.8]}
32. Rg1 {[%clk 0:00:43.4]} 32... Bd5 {[%clk 0:00:34.9]} 33. Rg7+ {[%clk
0:00:36.2]} 33... Kb8 {[%clk 0:00:32.9]} 34. Bg6 {[%clk 0:00:27.1]} 34... Bxf3
{[%clk 0:00:21.3]} 35. Kxf3 {[%clk 0:00:28]} 35... Rc3+ {[%clk 0:00:17.4]} 36.
Bd3 {[%clk 0:00:18.5]} 36... c5 {[%clk 0:00:15.5]} 37. Ke4 {[%clk 0:00:17.8]}
37... c4 {[%clk 0:00:15.7]} 38. Kxe5 {[%clk 0:00:15.5]} 38... cxd3 {[%clk
0:00:16.1]} 39. cxd3 {[%clk 0:00:16.4]} 39... Rc2 {[%clk 0:00:13]} 40. e4 {[%clk
0:00:16.6]} 40... Rh2 {[%clk 0:00:13.4]} 41. Rg4 {[%clk 0:00:16.5]} 41... Nd7+
{[%clk 0:00:13.8]} 42. Kd6 {[%clk 0:00:12.4]} 42... Nb6 {[%clk 0:00:08.7]} 43.
d4 {[%clk 0:00:11.2]} 43... Nc4+ {[%clk 0:00:08.5]} 44. Kc5 {[%clk 0:00:10.6]}
44... Ne3 {[%clk 0:00:08.9]} 45. Rf4 {[%clk 0:00:08.4]} 45... Rc2+ {[%clk
0:00:08.4]} 46. Kd6 {[%clk 0:00:08.4]} 46... Rc6+ {[%clk 0:00:07.6]} 47. Kd7
{[%clk 0:00:06.7]} 47... Rc4 {[%clk 0:00:07.7]} 48. d5 {[%clk 0:00:05.8]} 48...
b5 {[%clk 0:00:04.4]} 49. Rf8+ {[%clk 0:00:04.5]} 49... Kb7 {[%clk 0:00:04.6]}
50. Re8 {[%clk 0:00:03.6]} 50... b4 {[%clk 0:00:04.6]} 51. d6 {[%clk 0:00:03.7]}
51... b3 {[%clk 0:00:05.1]} 52. Re5 {[%clk 0:00:03.6]} 52... Rb4 {[%clk
0:00:04.8]} 53. Re7 {[%clk 0:00:01.2]} 53... b2 {[%clk 0:00:04.8]} 54. Ke8+
{[%clk 0:00:02.1]} 54... Ka6 {[%clk 0:00:03.8]} 55. d7 {[%clk 0:00:02.4]} 55...
Rb8+ {[%clk 0:00:04.1]} 56. d8=Q {[%clk 0:00:02.9]} 56... Rxd8+ {[%clk
0:00:04.5]} 57. Kxd8 {[%clk 0:00:03.8]} 57... b1=Q {[%clk 0:00:05.2]} 0-1